Cogmind - Beta 15 @@@ ROGUE MODE // 2025.06.08 @ 12:43:11 Player: puppuppit Result: Destroyed by G-67 Veteran with Field Laser Performance ------------- Evolutions (6) 3000 Regions Visited (10) 2000 Robots Destroyed (199) 995 Value Destroyed (7460) 7460 Prototype IDs (56) 1120 Alien Tech Used (0) 0 Bonus (8089) 8089 TOTAL SCORE: 22664 Bonus ------- Triggered High Security 1000 High Alert Combat Kills 2831 Follower Combat Kills 1785 Network Hubs Disabled 600 Registered with UFD 300 Met Optimus in HQ 500 Built Enhanced Grunts 300 A7 Reached Mainframe 300 Met R17 at Cetus 500 Friendly Fire -27 Cogmind --------- Core Integrity 0/1150 Matter 70/300 Energy 68/100 System Corruption 9% Temperature Cool (9) Movement Core (50) Location -4/Factory Parts ------- > --- POWER (2) -------- (None) > --- PROPULSION (6) --- (None) > --- UTILITY (7) ------ Improved Target Analyzer Core Analyzer Core Analyzer > --- WEAPON (4) ------- (None) > --- INVENTORY (5) ---- Hypervelocity Gauss Cannon Heavy Gauss Cannon Neutron Missile Launcher Force Lance DRS Beacon (Ready) Peak State ------------ > --- POWER ------------ Micro Fission Core Fusion Reactor > --- PROPULSION ------- Improved Gravmag System Improved Gravmag System Combat Airjet Combat Airjet Combat Airjet Improved Antigrav System > --- UTILITY ---------- Experimental Heat Sink Medium Storage Unit Core Analyzer Core Analyzer Advanced Recoil Stabilizer Advanced System Shield High-powered Tractor Beam > --- WEAPON ----------- Hypervelocity Gauss Cannon Hypervelocity Gauss Cannon Hypervelocity Gauss Cannon Neutron Missile Launcher > --- INVENTORY -------- Improved Gravmag System Combat Airjet Improved Sensor Array Core Analyzer Advanced Recoil Stabilizer Centrium Medium Armor Plating Hardlight Generator Heavy Gauss Cannon Heavy Gauss Cannon DRS Beacon [Rating: 107] Favorites ----------- Power Subdweller Power Source Engine Subdweller Power Source Power Core Enhanced Fission Core Reactor Fusion Reactor Propulsion Combat Airjet Treads Light Treads Wheel Armored Wheel Hover Unit Combat Airjet Flight Unit Cooled Cesium-ion Thruster Utility Advanced Targeting Computer Device Experimental Heat Sink Storage Medium Storage Unit Processor Advanced Targeting Computer Hackware Advanced System Shield Protection Light Armor Plating Weapon Barrage Gun Ballistic Gun Barrage Gun Ballistic Cannon Enhanced Gauss Cannon Launcher Improved Grenade Launcher Special Weapon Improved Remote Datajack Piercing Weapon Force Lance Build | -11 -10 -10 -7 -7 -5 -5 -5 -5 -5 -4 ------- Run | Yrd Mat Sub Rec Scr Fac Ext Cet Arc Hub Fac Slots Evolved 12 | . . . . . 10 . . . . 2 Power 1 | . . . . . . . . . . 1 Propulsion 4 | . . . . . 3 . . . . 1 Utility 5 | . . . . . 5 . . . . . Weapon 2 | . . . . . 2 . . . . . Parts Attached 148 | 7 4 17 5 8 51 7 2 3 13 31 Power 14 | 1 . 3 . 2 4 1 . . 1 2 Engine 5 | 1 . 3 . 1 . . . . . . Core 8 | . . . . 1 4 1 . . . 2 Reactor 1 | . . . . . . . . . 1 . Propulsion 45 | 2 . 4 3 4 14 3 . . 6 9 Treads 4 | 2 . 2 . . . . . . . . Leg . | . . . . . . . . . . . Wheel 7 | . . 2 3 2 . . . . . . Hover 33 | . . . . 2 13 3 . . 6 9 Flight 1 | . . . . . 1 . . . . . Utility 50 | 2 2 5 1 2 17 1 . 3 5 12 Device 21 | 1 . 4 . . 5 1 . 2 1 7 Storage 8 | 1 2 . . 2 2 . . . . 1 Processor 9 | . . . 1 . 4 . . . . 4 Hackware 8 | . . . . . 4 . . . 4 . Protection 4 | . . 1 . . 2 . . 1 . . Artifact . | . . . . . . . . . . . Weapon 39 | 2 2 5 1 . 16 2 2 . 1 8 Energy Gun . | . . . . . . . . . . . Energy Cannon . | . . . . . . . . . . . Ballistic Gun 9 | 2 2 1 1 . 3 . . . . . Ballistic Cannon 23 | . . 3 . . 10 2 2 . 1 5 Launcher 4 | . . 1 . . 2 . . . . 1 Special Weapon 1 | . . . . . 1 . . . . . Impact Weapon . | . . . . . . . . . . . Slashing Weapon . | . . . . . . . . . . . Piercing Weapon 2 | . . . . . . . . . . 2 Special Melee Weapon . | . . . . . . . . . . . Unidentified Prototypes 9 | . . . . . 6 . . 1 1 1 Parts Lost 57 | . . 9 1 . 4 6 . . 17 20 Power 4 | . . . . . . 1 . . . 3 Propulsion 24 | . . 4 . . 2 4 . . 6 8 Utility 17 | . . 3 . . 1 1 . . 6 6 Weapon 12 | . . 2 1 . 1 . . . 5 3 Highest Loss Streak 12 | . . 4 1 . 3 5 . . 12 9 To Critical Strikes 1 | . . . . . 1 . . . . . Average Backups 9 | . 9 13 12 7 7 7 7 8 8 7 Power . | . . . 2 . . . . . . . Propulsion 1 | . . 2 2 2 1 1 . 1 1 1 Utility 3 | . 3 4 5 2 2 . 1 2 2 2 Weapon 3 | . 5 5 2 2 2 5 6 5 3 3 Tool/Special . | . . . . . . . . . . . Unused Backups 27 | . 1 7 1 5 7 1 . . 4 1 Power 1 | . . . . 1 . . . . . . Propulsion 6 | . . . . 2 2 . . . 2 . Utility 12 | . 1 3 . 2 4 . . . 1 1 Weapon 8 | . . 4 1 . 1 1 . . 1 . Tool/Special . | . . . . . . . . . . . Average Slot Usage (%) 94 | . 100 97 100 100 91 99 100 100 92 70 Engine 6 | . 14 14 14 5 . . . . . . Core 3 | . . . . 8 5 5 5 5 2 1 Treads 8 | . 28 25 . . . . . . . . Wheel 5 | . . 2 28 26 1 . . . . . Hover 13 | . . . . 1 27 28 29 29 28 23 Device 8 | . 14 11 1 . 6 11 11 11 2 8 Storage 9 | . 14 14 14 14 5 5 5 5 4 4 Processor 8 | . . . 12 14 15 11 11 11 10 10 Hackware 4 | . . . . . 6 11 11 11 19 3 Ballistic Gun 11 | . 28 15 22 28 3 . . . . . Ballistic Cannon 11 | . . 12 5 . 15 22 23 23 17 11 Peak Build Rating 107 | 9 10 16 19 22 94 91 87 89 88 107 Average Rating 46 | 6 9 12 17 18 78 87 85 86 78 75 On Entrance 42 | . 9 10 16 17 22 91 85 86 87 47 Naked Turns . | . . . . . . . . . . . Heaviest Build 70 | 12 48 33 33 31 56 57 59 61 59 70 Greatest Support 70 | 40 40 40 40 32 57 59 59 59 59 70 Greatest Overweight (x) 3 | . 1 1 1 3 1 . . 1 1 1 Average Overweight (x) . | . . . . . . . . . . . Largest Inventory Capacity 20 | 8 20 15 15 15 15 10 10 10 10 10 Average Capacity 12 | 7 18 15 15 13 10 10 10 10 9 9 Most Carried 15 | 3 15 15 15 15 15 10 10 10 10 10 Average Carried 11 | 1 9 14 14 10 10 9 9 9 9 8 Final Capacity 15 | 8 15 15 15 15 10 10 10 10 10 5 Final Carried 15 | 3 15 15 15 15 10 9 9 10 7 5 Class Distribution -------------------- 50% | Mutant 18% | Hacker-Gunner 10% | Gunner 9% | Commander-Gunner 4% | Scavenger-Mutant 3% | Derelict-Mutant Dominant Class ---------------- Mutant | -10/Materials Mutant | -10/Subcaves Mutant | -7/Recycling Mutant | -7/Scraptown Hacker-Gunner | -5/Factory Hacker-Gunner | -5/Extension Commander-Gunner | -5/Cetus Commander-Gunner | -5/Archives Hacker-Gunner | -5/Hub_04(d) Gunner | -4/Factory Resources | -11 -10 -10 -7 -7 -5 -5 -5 -5 -5 -4 ----------- Run | Yrd Mat Sub Rec Scr Fac Ext Cet Arc Hub Fac Matter Collected 8666 | 350 483 1004 227 90 3765 898 307 406 520 616 Remotely 139 | . . . . . . . . . . 139 Salvage Created 7836 | 209 539 412 350 . 3740 851 290 411 434 600 Parts 342 | 24 40 31 8 . 121 31 13 21 22 31 Haulers Intercepted 8 | . . . . . 8 . . . . . Recyclers Shooed 6 | . 1 . 1 . 4 . . . . . Parts Field Recycled . | . . . . . . . . . . . Retrieved Matter . | . . . . . . . . . . . Parts Self-Destructed 6 | . . 6 . . . . . . . . Prevented . | . . . . . . . . . . . Kills | -11 -10 -10 -7 -7 -5 -5 -5 -5 -5 -4 ------- Run | Yrd Mat Sub Rec Scr Fac Ext Cet Arc Hub Fac Combat Hostiles Destroyed 112 | . 10 20 1 . 44 17 3 3 3 11 Melee 4 | . . . . . . . . . . 4 Guns 18 | . 10 6 . . 2 . . . . . Cannons 66 | . . 6 1 . 30 14 3 3 2 7 AOE 23 | . . 8 . . 12 3 . . . . Classes Destroyed 17 | 3 4 1 1 . 7 . . . 1 . Worker 16 | 2 1 . . . 7 . . . 5 1 Builder 8 | . 1 . . . 6 . . . 1 . Tunneler 7 | 4 1 . . . 1 . . . 1 . Hauler 8 | . . . . . 8 . . . . . Recycler 22 | 1 1 . 3 . 13 3 . . . 1 Operator 6 | . . . . . 1 . . 5 . . Watcher 17 | . 3 . . . 7 1 2 . 4 . Swarmer 17 | . 4 4 . . 1 8 . . . . Saboteur 3 | . . . . . 2 . . . . 1 Grunt 32 | . 6 . . . 20 3 . . . 3 Brawler 3 | . . . . . 2 . . . . 1 Duelist 2 | . . . . . 1 1 . . . . Sentry 13 | . . . 1 . 6 1 . 3 1 1 Hunter 10 | . . . . . 5 4 . . 1 . Programmer 12 | . . . . . 7 . . . . 5 Heavy 1 | . . . . . . . . . 1 . Cetus Guard 3 | . . . . . . . 3 . . . Enhanced Grunt 1 | . . . . . . . . . 1 . Subdweller 16 | . . 16 . . . . . . . . Butcher 2 | . . . . . . . 1 1 . . Best Kill Streak 11 | 5 3 5 2 . 11 7 3 8 8 6 Combat Bots Only 7 | . 3 5 1 . 6 7 2 3 1 6 Max Kills in Single Turn 7 | 1 1 3 1 . 4 4 2 2 7 1 Gunslinging . | . . . . . . . . . . . Exploded 3 | . . 3 . . 3 3 . . . . Melee 1 | . . . . . . . . . . 1 Uniques/NPCs Destroyed . | . . . . . . . . . . . Combat | -11 -10 -10 -7 -7 -5 -5 -5 -5 -5 -4 -------- Run | Yrd Mat Sub Rec Scr Fac Ext Cet Arc Hub Fac Hostile Shots Fired 763 | . 28 104 27 . 163 78 11 6 66 280 Missed 303 | . 8 35 12 . 58 31 8 3 21 127 Hits 460 | . 20 69 15 . 105 47 3 3 45 153 Melee 5 | . . . . . . . . . . 5 Projectile 455 | . 20 69 15 . 105 47 3 3 45 148 AOE 5 | . . 3 . . . . . . 2 . Critical Strikes 27 | . . 1 . . 4 2 . . 3 17 Part Disruptions 2 | . . . . . . . . . 1 1 Damage Taken 10375 | . 238 1451 107 . 1996 985 95 75 2168 3260 Core 2067 | . 10 183 18 . 295 102 . 29 272 1158 Absorbed by Shields . | . . . . . . . . . . . Regen/Repaired (Parts) 23 | . . . . . 23 . . . . . Core Remaining (%) 48 | 100 . . . 15 . . . . 30 . Volleys Fired 432 | 14 50 107 13 . 144 36 11 11 22 24 Largest 4 | 2 2 2 2 . 4 4 4 4 4 4 Hottest 204 | 40 40 66 66 . 174 176 184 184 184 204 Shots Fired 1092 | 28 100 171 26 . 449 120 41 44 56 57 Gun 255 | 28 100 63 20 . 44 . . . . . Cannon 816 | . . 97 6 . 396 119 41 44 56 57 Launcher 20 | . . 11 . . 8 1 . . . . Special 1 | . . . . . 1 . . . . . Kinetic 1071 | 28 100 160 26 . 440 119 41 44 56 57 Thermal . | . . . . . . . . . . . Explosive 20 | . . 11 . . 8 1 . . . . Electromagnetic . | . . . . . . . . . . . Robot Hit Streak 17 | 6 9 17 4 . 16 11 5 9 6 13 Robot Miss Streak 6 | 2 6 2 1 . 5 3 6 4 2 3 Penetration Max 2 | . . . . . 1 2 1 1 . 1 Secondary Targets . | . . . . . . . . . . . Shots Hit Robots 636 | 19 52 116 16 . 260 66 16 25 26 40 Core Hits 354 | 11 29 37 7 . 163 36 12 15 22 22 Critical Kills 18 | . . . . . 1 4 3 7 1 2 Critical Parts Destroyed 12 | . . . . . 1 1 5 2 2 1 Critical Strikes 86 | . . 2 . . 34 12 15 10 5 8 Destroy 36 | . . 1 . . 2 5 13 9 3 3 Blast 49 | . . 1 . . 32 7 2 1 2 4 Impale 1 | . . . . . . . . . . 1 Melee Attacks 11 | . . . . . . . . . . 11 Impact . | . . . . . . . . . . . Slashing . | . . . . . . . . . . . Piercing 11 | . . . . . . . . . . 11 Sneak Attacks . | . . . . . . . . . . . Combat Hostiles . | . . . . . . . . . . . Follow-up Attacks . | . . . . . . . . . . . Damage Inflicted 22992 | 202 483 2527 309 . 12106 2699 708 682 1773 1503 Guns 2263 | 202 481 649 198 . 733 . . . . . Cannons 15086 | . . 1078 111 . 8152 2412 708 682 763 1180 Explosions 5318 | . . 800 . . 3221 287 . . 1010 . Melee 308 | . . . . . . . . . . 308 Ramming 17 | . 2 . . . . . . . . 15 Kinetic 17349 | 202 481 1727 309 . 8885 2412 708 682 763 1180 Thermal 1470 | . . . . . 1470 . . . . . Explosive 2276 | . . 800 . . 1189 287 . . . . Electromagnetic 1572 | . . . . . 562 . . . 1010 . Impact . | . . . . . . . . . . . Slashing . | . . . . . . . . . . . Piercing 308 | . . . . . . . . . . 308 Highest Corruption 30 | . . . . . 6 1 1 1 30 9 Average Corruption 2 | . . . . . 2 1 1 1 9 6 Corruption Purged 7 | . . . . . 6 . . 1 . . Corruption Blocked . | . . . . . . . . . . . Effects 44 | . . . . . 24 2 2 1 2 13 Message Errors 8 | . . . . . 4 . 1 1 1 1 Matter Fused 8 | . . . . . 4 . 1 . . 3 Heat Flow Errors 9 | . . . . . 5 2 . . . 2 Energy Discharges 5 | . . . . . 3 . . . . 2 Parts Rejected 1 | . . . . . . . . . . 1 Data Loss (minor) 5 | . . . . . 3 . . . 1 1 Data Loss (major) 2 | . . . . . 1 . . . . 1 Misfires 2 | . . . . . 2 . . . . . Alerts 1 | . . . . . . . . . . 1 Weapon Failures 3 | . . . . . 2 . . . . 1 Overload Shots . | . . . . . . . . . . . Overflow Damage 656 | . . 8 . . 399 114 1 . 92 42 Projectiles 355 | . . . . . 215 114 1 . . 25 Explosions 284 | . . 8 . . 184 . . . 92 . Melee 17 | . . . . . . . . . . 17 Knockbacks 89 | . . 14 . . 39 16 2 3 2 13 Impact . | . . . . . . . . . . . Kinetic 82 | . . 11 . . 38 15 2 3 2 11 Secondary 7 | . . 3 . . 1 1 . . . 2 Self-Inflicted Damage 235 | . . . . . 29 . . . 199 7 Shots 3 | . . . . . 1 . . . 2 . Rammed 4 | . 1 . . . . . . . . 3 Targets Rammed 4 | . 1 . . . . . . . . 3 Kicked . | . . . . . . . . . . . Crushed . | . . . . . . . . . . . Highest Temperature 393 | . 9 . 44 . 393 334 48 48 153 235 Average Temperature 52 | . 7 . 11 . 65 45 23 21 45 61 Received Heat Transfer 1830 | . 114 393 30 . 276 414 27 9 54 513 Effects 1 | . . . . . 1 . . . . . Short Circuit 1 | . . . . . 1 . . . . . Siege Activations . | . . . . . . . . . . . Martial Activations . | . . . . . . . . . . . Shielding Activations . | . . . . . . . . . . . Robots Disrupted 1 | . . . . . 1 . . . . . Combat Hostiles . | . . . . . . . . . . . Robots Corrupted 1 | . . . . . . . . . 1 . Combat Hostiles 1 | . . . . . . . . . 1 . Parts Fried 6 | . . . . . 2 . . . 4 . Impact Corruptions . | . . . . . . . . . . . Robots Melted . | . . . . . . . . . . . Combat Hostiles . | . . . . . . . . . . . Parts Melted 1 | . . 1 . . . . . . . . Heat Transferred 950 | . . . . . 950 . . . . . Parts Sabotaged . | . . . . . . . . . . . Parts Stolen . | . . . . . . . . . . . Parts Stripped . | . . . . . . . . . . . Power Chain Reactions . | . . . . . . . . . . . Alert | -11 -10 -10 -7 -7 -5 -5 -5 -5 -5 -4 ------- Run | Yrd Mat Sub Rec Scr Fac Ext Cet Arc Hub Fac Maximum Alert Level 5 | . . . . . 5 5 4 3 4 3 Low Security (%) 39 | 100 100 . 100 . 39 . . . . . Level 1 3 | . . . . . 7 . . . 15 . Level 2 14 | . . . . . 2 . . 79 65 48 Level 3 13 | . . . . . 4 20 45 20 . 51 Level 4 22 | . . . . . 31 66 54 . 18 . Level 5 . | . . . . . . . . . . . High Security 6 | . . . . . 13 13 . . . . Max Security . | . . . . . . . . . . . Peak Influence 2413 | 20 120 . 40 . 2413 1970 1186 710 1569 951 Initial 1182 | . . . 7 . . 1182 1103 463 220 762 Average 654 | 4 59 . 12 . 785 1344 1098 654 623 714 Influence Increases 8543 | 35 356 170 219 . 3086 1372 353 277 1842 833 Destroy 0b10 Robot/C 2600 | . 200 80 20 . 980 540 160 80 240 300 Destroy 0b10 Robot/NC 455 | 35 35 . 20 . 215 30 10 25 65 20 Destroy Leader 504 | . 46 . . . 216 82 . . 80 80 Allied During Kill 1121 | . . . . . 77 475 150 105 281 33 Trap Triggered on 0b10 50 | . . . . . 50 . . . . . Successful Hack 411 | . 14 . 72 . 187 27 5 . 22 84 Select Force Hacks 120 | . 30 . 90 . . . . . . . Disable Machine 1185 | . 15 . 15 . 525 60 . 45 495 30 Destroy Structure 1407 | . 1 . 2 . 656 98 28 22 554 46 Partial Spotted 60 | . . . . . . 30 . . 30 . Lose Combat Pursuer 630 | . 15 90 . . 180 30 . . 75 240 Influence Decreases 7620 | 35 290 221 234 . 673 1815 1165 805 916 1466 Entered New Map 4038 | . . 33 8 . . 1231 867 695 410 794 Time Decay 2191 | 35 290 178 167 . 411 254 198 110 206 342 Lost Part 487 | . . 10 7 . 40 60 . . 170 200 Lost Ally 530 | . . . . . 50 120 100 . 130 130 Purge Threat 374 | . . . 52 . 172 150 . . . . Squads Dispatched 51 | . 2 . . . 26 3 . . 6 14 Investigation 17 | . 2 . . . 9 . . . . 6 Extermination 6 | . . . . . 3 . . . 1 2 Reinforcement 10 | . . . . . 4 2 . . 3 1 Assault 15 | . . . . . 9 1 . . 1 4 Garrison 3 | . . . . . 1 . . . 1 1 Intercept . | . . . . . . . . . . . Searches Triggered . | . . . . . . . . . . . Construction Impeded 3 | . . . . . 2 . . . . 1 Haulers Reinforced 2 | . . . . . 2 . . . . . Active Scanning Responses . | . . . . . . . . . . . Cargo Convoy Interrupts . | . . . . . . . . . . . Stealth | -11 -10 -10 -7 -7 -5 -5 -5 -5 -5 -4 --------- Run | Yrd Mat Sub Rec Scr Fac Ext Cet Arc Hub Fac Distress Signals 11 | . 1 . . . 2 2 2 . 3 1 Communications Jammed . | . . . . . . . . . . . Distress Signals . | . . . . . . . . . . . Times Spotted 243 | . 14 24 1 . 70 45 8 4 27 50 Peak Tracking Total 16 | . 4 6 1 . 8 8 5 1 11 16 Tactical Retreats 24 | . 1 3 . . 11 1 . . 3 5 Traps | -11 -10 -10 -7 -7 -5 -5 -5 -5 -5 -4 ------- Run | Yrd Mat Sub Rec Scr Fac Ext Cet Arc Hub Fac Traps Triggered 13 | . 1 2 . . 3 4 . . . 3 Indirectly 3 | . . . . . 3 . . . . . Trap Hack Attempts . | . . . . . . . . . . . Triggered . | . . . . . . . . . . . Disarmed 6 | . . . . . 4 . . . 2 . Reprogrammed 10 | . . . . . 6 . . . 4 . Reused 5 | . . . . . 5 . . . . . Traps Extracted . | . . . . . . . . . . . Installed 3 | . . . . . 2 . 1 . . . Triggered 5 | . . . . . 5 . . . . . Most Traps Carried 3 | . . . . 3 3 1 1 . . . Machines | -11 -10 -10 -7 -7 -5 -5 -5 -5 -5 -4 ---------- Run | Yrd Mat Sub Rec Scr Fac Ext Cet Arc Hub Fac Machines Disabled 84 | . 1 3 1 . 35 6 . 3 33 2 Max in Single Turn 21 | . 1 1 1 . 8 1 . 1 21 1 Garrison Access 5 | . . . . . 3 . . . 1 1 Network Hub 3 | . . . . . . . . . 3 . Energy Cycler 2 | . . . . . . 2 . . . . Machines Repaired . | . . . . . . . . . . . Machines Dismantled . | . . . . . . . . . . . Machines Sabotaged . | . . . . . . . . . . . Overloaded Fab Kills . | . . . . . . . . . . . Hacking | -11 -10 -10 -7 -7 -5 -5 -5 -5 -5 -4 --------- Run | Yrd Mat Sub Rec Scr Fac Ext Cet Arc Hub Fac Machines Accessed 74 | . 4 2 9 1 33 5 2 . 6 12 Terminals 43 | . 3 . 6 . 16 5 2 . 5 6 Fabricators 6 | . . . . . 6 . . . . . Repair Stations 2 | . . . . . 2 . . . . . Recycling Units 12 | . 1 . 3 . 4 . . . . 4 Scanalyzers 3 | . . . . . 2 . . . . 1 Garrison Access 5 | . . . . . 3 . . . 1 1 Total Hacks 275 | . 14 4 18 1 98 8 12 . 47 73 Successful 150 | . 7 4 10 1 58 6 5 . 24 35 Failed 122 | . 6 . 8 . 39 2 7 . 22 38 Catastrophic 19 | . 1 . . . 4 1 . . 3 10 Database Lockouts 3 | . 1 . . . 1 . . . 1 . Manual 125 | . 13 . 8 . 36 5 1 . 24 38 Terminals 194 | . 13 . 15 . 65 8 12 . 43 38 Fabricators 16 | . . . . . 16 . . . . . Repair Stations 4 | . . . . . 4 . . . . . Recycling Units 18 | . 1 . 3 . 6 . . . . 8 Scanalyzers 18 | . . . . . 2 . . . . 16 Garrison Access 20 | . . . . . 5 . . . 4 11 Terminal Hacks 81 | . 4 4 5 1 30 4 5 . 19 9 Record 7 | . . 3 . . . . 4 . . . Part Schematic 8 | . . . 2 . 3 . . . 3 . Robot Schematic 4 | . . . . . 3 . . . 1 . Robot Analysis 16 | . 2 . . . 6 . . . 7 1 Prototype ID Bank 10 | . 1 . 1 . 4 . . . 2 2 Open Door 4 | . . . . . . 3 1 . . . Branch Access Points 2 | . . . . . 1 . . . . 1 Emergency Access Points 1 | . . . . . . . . . . 1 Terminal Index 5 | . 1 . 1 . 1 . . . 1 1 Repair Station Index 1 | . . . . . 1 . . . . . Alert Level 2 | . . . . . 2 . . . . . Unreport Threat 4 | . . . 1 . 2 1 . . . . Locate Traps 1 | . . . . . . . . . . 1 Disarm Traps 2 | . . . . . 1 . . . 1 . Reprogram Traps 3 | . . . . . 2 . . . 1 . Recall Investigation 1 | . . . . . 1 . . . . . Recall Reinforcements 1 | . . . . . 1 . . . . . Registered Components 2 | . . . . . 1 . . . 1 . Zone Layout 5 | . . . . . 1 . . . 2 2 Proto ID Catalog 2 | . . 1 . 1 . . . . . . Fabricator Hacks 9 | . . . . . 9 . . . . . Network Status 1 | . . . . . 1 . . . . . Load Schematic 4 | . . . . . 4 . . . . . Build 4 | . . . . . 4 . . . . . Repair Station Hacks 3 | . . . . . 3 . . . . . Scan Component 2 | . . . . . 2 . . . . . Repair 1 | . . . . . 1 . . . . . Recycling Unit Hacks . | . . . . . . . . . . . Scanalyzer 14 | . . . . . . . . . . 14 Insert Component 6 | . . . . . . . . . . 6 Analyze 8 | . . . . . . . . . . 8 Garrison Access Hacks 4 | . . . . . 3 . . . 1 . Seal Access 4 | . . . . . 3 . . . 1 . Unauthorized Hacks 39 | . 3 . 5 . 13 2 . . 4 12 Terminals 26 | . 2 . 2 . 9 2 . . 4 7 Assimilate 3 | . . . . . 1 . . . 1 1 Botnet 22 | . 2 . 2 . 8 2 . . 3 5 Sabotage 1 | . . . . . . . . . . 1 Fabricators . | . . . . . . . . . . . Repair Stations . | . . . . . . . . . . . Recycling Units 12 | . 1 . 3 . 4 . . . . 4 Tunnel 4 | . 1 . 3 . . . . . . . Fedlink 6 | . . . . . 4 . . . . 2 Scrapoids 1 | . . . . . . . . . . 1 Scraphulk 1 | . . . . . . . . . . 1 Scanalyzers . | . . . . . . . . . . . Garrison Access 1 | . . . . . . . . . . 1 Intercept 1 | . . . . . . . . . . 1 Data Cores Recovered 2 | . . . . . 1 . . . 1 . Used 2 | . . . . . 1 . . . 1 . Hacking Detections 54 | . 3 . 6 . 29 2 1 . 6 7 Full Trace Events 9 | . 1 . 2 . 5 . . . . 1 Feedback Events 1 | . . . . . 1 . . . . . Corruption 1 | . . . . . 1 . . . . . Feedback Blocked . | . . . . . . . . . . . Robot Schematics Acquired 4 | . . . . . 3 . . . 1 . Robots Built 3 | . . . . . 3 . . . . . Authchips . | . . . . . . . . . . . Time 160 | . . . . . 160 . . . . . Total Robot Build Rating 15 | . . . . . 15 . . . . . Part Schematics Acquired 13 | . . . 2 . 3 . . . 3 5 Parts Built 4 | . . . . . 4 . . . . . Authchips . | . . . . . . . . . . . Time 142 | . . . . . 142 . . . . . Total Part Build Rating 20 | . . . . . 20 . . . . . Parts Repaired 1 | . . . . . 1 . . . . . Time 44 | . . . . . 44 . . . . . Parts Recycled . | . . . . . . . . . . . Recycled Matter . | . . . . . . . . . . . Retrieved Matter . | . . . . . . . . . . . Retrieved Components . | . . . . . . . . . . . Parts Scanalyzed 6 | . . . . . . . . . . 6 Part Schematics Acquired 5 | . . . . . . . . . . 5 Parts Damaged 2 | . . . . . . . . . . 2 Bothacking | -11 -10 -10 -7 -7 -5 -5 -5 -5 -5 -4 ------------ Run | Yrd Mat Sub Rec Scr Fac Ext Cet Arc Hub Fac Used RIF Installer . | . . . . . . . . . . . Robots Hacked 1 | . . . . . 1 . . . . . Non-combat 1 | . . . . . 1 . . . . . Combat . | . . . . . . . . . . . Robot Hacks Applied 1 | . . . . . 1 . . . . . no_distress 1 | . . . . . 1 . . . . . Relay Couplers Released 6 | . . . . . . . . . 3 3 Machine Destruction 6 | . . . . . . . . . 3 3 Fabnet Peak Effective % . | . . . . . . . . . . . Robots Rewired 18 | . . . . . . 18 . . . . Allies Hacked 1 | . . . . . 1 . . . . . Hacks Repelled . | . . . . . . . . . . . Allies | -11 -10 -10 -7 -7 -5 -5 -5 -5 -5 -4 -------- Run | Yrd Mat Sub Rec Scr Fac Ext Cet Arc Hub Fac Total Allies 39 | . . . . . 4 22 5 . 1 7 Largest Group 19 | . . . . . 3 19 13 10 8 5 Highest-Rated Group 743 | . . . . . 87 649 743 740 575 238 Highest-Rated Ally 146 | . . . . . 29 146 146 143 96 123 Total Orders 9 | . . . . . 3 2 4 . . . STAY 5 | . . . . . 2 1 2 . . . FOLLOW 4 | . . . . . 1 1 2 . . . Ally Attacks 299 | . . . . . 41 102 44 10 76 26 Total Damage 7630 | . . . . . 509 2038 1189 266 2798 830 Kills 44 | . . . . . 5 13 7 1 12 6 Allies Corrupted 1 | . . . . . . . . . 1 . Allies Melted . | . . . . . . . . . . . Intel | -11 -10 -10 -7 -7 -5 -5 -5 -5 -5 -4 ------- Run | Yrd Mat Sub Rec Scr Fac Ext Cet Arc Hub Fac Active Infowar (turns) 4312 | 56 889 1570 . . 1657 . . . . 140 Optics 639 | . . 578 . . 61 . . . . . Sensors 74 | . . . . . . . . . . 74 Terrain 2003 | 56 889 992 . . . . . . . 66 Decoding 1657 | . . . . . 1657 . . . . . Robot Analysis Total 16 | . 2 . . . 6 . . . 7 1 Derelict Logs Recovered 7 | . . 2 . 5 . . . . . . Drone Launches . | . . . . . . . . . . . Drone Recoveries . | . . . . . . . . . . . Decoded 0b10 Intel 95 | . . . . . 95 . . . . . Items 95 | . . . . . 95 . . . . . Exploration | -11 -10 -10 -7 -7 -5 -5 -5 -5 -5 -4 ------------- Run | Yrd Mat Sub Rec Scr Fac Ext Cet Arc Hub Fac Turns Passed 9598 | 152 889 2345 488 1011 2274 621 404 227 422 765 Spaces Moved 8341 | 65 320 1287 415 871 2842 602 346 153 477 963 Core 28 | 3 . . . . . . . . . 25 Treads 1491 | 62 320 1109 . . . . . . . . Legs . | . . . . . . . . . . . Wheels 1606 | . . 178 415 833 180 . . . . . Hover 5216 | . . . . 38 2662 602 346 153 477 938 Flight . | . . . . . . . . . . . Fastest Speed 40 | 50 160 110 100 56 40 48 65 65 53 43 Average Speed 85 | 154 224 154 102 100 52 56 65 85 59 55 Slowest Speed 245 | 160 240 240 120 245 105 65 65 129 129 120 Overloaded Moves . | . . . . . . . . . . . Propulsion Burnouts . | . . . . . . . . . . . Robots Hopped . | . . . . . . . . . . . Potential Cave-ins 3 | . . . . . . . . . 3 . Cave-ins Triggered 1 | . . . . . . . . . 1 . Exploration Rate (%) 55 | 4 65 49 83 51 56 74 77 75 53 21 Regions Visited 10 Branch Regions 7 Pre-discovered Areas 6 | . 1 . 3 1 1 . . . . . Known Exits Taken 1 | . . . . . 1 . . . . . Unknown Exits Taken 9 | 1 1 1 1 1 . 1 1 1 1 . Scrap Searched 8 | . . 5 . 3 . . . . . . Spaces Dug 41 | . . 2 . . 27 4 . . 4 4 Terrain Destroyed 842 | . . 51 . . 366 33 8 20 352 12 Melee 3 | . . . . . . . . . . 3 Projectile 238 | . . 2 . . 146 33 8 20 20 9 AOE 601 | . . 49 . . 220 . . . 332 . Terrain Rammed . | . . . . . . . . . . . Walls Destroyed . | . . . . . . . . . . . Machines Disabled . | . . . . . . . . . . . Actions | -11 -10 -10 -7 -7 -5 -5 -5 -5 -5 -4 --------- Run | Yrd Mat Sub Rec Scr Fac Ext Cet Arc Hub Fac Total 9939 | 88 396 1471 453 1014 3310 799 498 218 572 1120 Wait 544 | . 8 4 13 105 156 26 134 38 28 32 Move 8330 | 64 319 1286 414 870 2841 601 345 152 475 963 Hop . | . . . . . . . . . . . Pick Up 123 | 3 12 21 3 15 32 5 2 4 14 12 Fast Attach 51 | 7 . 2 1 1 13 3 . . 1 23 Attach 57 | . . 9 1 . 18 5 . . 8 16 Detach 22 | . . 1 1 . 10 . . . 1 9 Swap 126 | . 4 20 4 8 46 5 3 10 13 13 Drop 120 | . 2 21 3 15 48 3 2 3 9 14 Fire 432 | 14 50 107 13 . 144 36 11 11 22 24 Melee 11 | . . . . . . . . . . 11 Ram 3 | . . . . . . . . . . 3 Kick . | . . . . . . . . . . . Crush 1 | . 1 . . . . . . . . . Escape Stasis 53 | . . . . . . 52 . . 1 . Rewire 63 | . . . . . . 63 . . . . Trap 3 | . . . . . 2 . 1 . . . Miscellaneous . | . . . . . . . . . . . Route ------- -11/Scrapyard -10/Materials (discovered 3 exits: [*Mat x2] / *Sub) -10/Subcaves (discovered 3 exits: [*Mat x2] / *Rec) -7/Recycling (discovered 2 exits: *Fac / *Scr) -7/Scraptown -5/Factory (discovered 6 exits: *Fac x2 / *Upp x2 / *Ext x2) -5/Extension (discovered 3 exits: *Fac x2 / *Cet) -5/Cetus (discovered 2 exits: *Fac / [*Arc]) -5/Archives (discovered 3 exits: *Fac / *Hub x2) -5/Hub_04(d) (discovered 2 exits: *Fac x2) -4/Factory (discovered 3 exits: [*Res] / Upp x2) History --------- Turn | Location | Event 6 | -11/Scrapyard | Discovered new exit (range 14) 153 | -11/Scrapyard | Entered Materials 308 | -10/Materials | Build established: Mutant 547 | -10/Materials | Discovered new exit (range 16) 652 | -10/Materials | Central database locked down 856 | -10/Materials | Discovered new exit (range 15) 1017 | -10/Materials | Discovered new exit (range 10) 1042 | -10/Materials | Entered Subcaves 1049 | -10/Subcaves | Ambushed by Subdweller buried in earth 1166 | -10/Subcaves | Learned Materials emergency access door positions 1194 | -10/Subcaves | Visited Clippyterm 1199 | -10/Subcaves | Learned Factory trap positions 1213 | -10/Subcaves | Discovered new exit (range 5) 1269 | -10/Subcaves | Disturbed a concealed Subdweller 1337 | -10/Subcaves | Lost 4 parts (1n1u2w) 1488 | -10/Subcaves | Learned 4 Materials zone layouts 2176 | -10/Subcaves | Discovered new exit (range 3) 2447 | -10/Subcaves | A swath of the cavern ceiling suddenly collapsed 2525 | -10/Subcaves | Core integrity fell below 50% 2895 | -10/Subcaves | Disturbed a concealed Subdweller 3116 | -10/Subcaves | Discovered new exit (range 9) 3139 | -10/Subcaves | Visited 4L-MR0's lab 3209 | -10/Subcaves | Found Power Bank 3387 | -10/Subcaves | Entered Recycling 3412 | -7/Recycling | Core integrity fell below 20% 3785 | -7/Recycling | Discovered new exit (range 5) 3848 | -7/Recycling | Scanned before Scraplab entrance 3863 | -7/Recycling | Entered Scraplab 3872 | -7/Recycling | Discovered new exit (range 3) 3875 | -7/Recycling | Entered Scraptown 3956 | -7/Scraptown | Scanned Subdweller tech in exchange for log data 3959 | -7/Scraptown | Learned location of Zion (-6) 3960 | -7/Scraptown | Learned Factory emergency access door positions 3961 | -7/Scraptown | Learned Research security intel 3962 | -7/Scraptown | Learned location of 1 exit from Lower Caves 4023 | -7/Scraptown | Visited UFD Registry 4023 | -7/Scraptown | Registered with UFD as "Fibercutter" 4100 | -7/Scraptown | Delivered Scrap Shield to a Scientist 4168 | -7/Scraptown | Visited Observation Area 4183 | -7/Scraptown | Visited Science Testing Area 4215 | -7/Scraptown | Visited Modified Component R&D 4231 | -7/Scraptown | Visited DA-N13 Charitable Foundation 4243 | -7/Scraptown | Found DCF Scrap (31 items) 4291 | -7/Scraptown | Visited Supply Room 4329 | -7/Scraptown | Visited Derelict Rescue Squad 4335 | -7/Scraptown | Found DRS Beacon 4349 | -7/Scraptown | Visited Scrap Suit Storage 4363 | -7/Scraptown | Visited Infowarlord's Domain 4387 | -7/Scraptown | Visited Junk Repository 4427 | -7/Scraptown | Visited Science Guys 4829 | -7/Scraptown | Met Optimus 4829 | -7/Scraptown | Accepted into 0bPrime 4880 | -7/Scraptown | Discovered new exit (range 5) 4886 | -7/Scraptown | Entered Factory 4886 | -5/Factory | Evolved 10 slots: Propulsion x3, Utility x5, Weapon x2 4887 | -5/Factory | Identified exit to Upper Caves 4888 | -5/Factory | Loaded intel: 94 trap records 5156 | -5/Factory | Spotted B-75 Beast 5162 | -5/Factory | Loaded intel: 8 recycling unit locations 5182 | -5/Factory | Learned location of Protoforge (-3) 5290 | -5/Factory | Identified exit to Extension 5473 | -5/Factory | Repaired Gravmag System 5575 | -5/Factory | Discovered new exit (range 9) 5705 | -5/Factory | Build established: Gunner 5744 | -5/Factory | Fabricated Cmb. Airjet (x2) 6027 | -5/Factory | Lost 3 parts (2n1w) 6051 | -5/Factory | Fabricated Cmb. Airjet? 6086 | -5/Factory | Garrison activated, responded to threat 6177 | -5/Factory | Central database locked down 6204 | -5/Factory | Discovered new exit (range 15) 6415 | -5/Factory | Build established: Hacker-Gunner 6686 | -5/Factory | First assault squad dispatched 6843 | -5/Factory | High security lockdown imminent 6923 | -5/Factory | High security lockdown engaged 6947 | -5/Factory | Fabricated G-50 Soldier? 7160 | -5/Factory | Entered Extension 7160 | -5/Extension | Accompanied by 1 ally 7202 | -5/Extension | Rescued a captive Derelict 7251 | -5/Extension | Rescued a captive Derelict 7302 | -5/Extension | Rescued a captive Derelict 7303 | -5/Extension | Rescued a captive Derelict 7351 | -5/Extension | Energy Cycler disabled 7351 | -5/Extension | Rescued a captive Derelict 7351 | -5/Extension | Rescued a captive Derelict 7353 | -5/Extension | Rescued a captive Derelict 7356 | -5/Extension | Rescued a captive Derelict 7356 | -5/Extension | Rescued a captive Derelict 7361 | -5/Extension | Rescued a captive Derelict 7363 | -5/Extension | Rescued a captive Derelict 7428 | -5/Extension | Spotted B-75 Beast 7430 | -5/Extension | Spotted B-75 Beast 7453 | -5/Extension | Allies destroyed B-75 Beast 7460 | -5/Extension | First assault squad dispatched 7460 | -5/Extension | Disrupted transfer network 7473 | -5/Extension | Discovered new exit (range 15) 7481 | -5/Extension | Lost 5 parts (1p3n1u) 7481 | -5/Extension | Lost 3 allies 7497 | -5/Extension | Rescued A7 7700 | -5/Extension | High security lockdown imminent 7728 | -5/Extension | Destroyed 7 combat bots 7734 | -5/Extension | Discovered new exit (range 10) 7735 | -5/Extension | Discovered new exit (range 6) 7759 | -5/Extension | Lost 3 allies 7780 | -5/Extension | High security lockdown engaged 7781 | -5/Extension | Entered Cetus 7781 | -5/Cetus | Accompanied by 13 allies (A7) 7786 | -5/Cetus | Acquired a Cetus Manufacturing Module code from A7 7800 | -5/Cetus | Spotted Cetus Guard 7800 | -5/Cetus | Spotted Cetus Guard 7805 | -5/Cetus | Spotted Cetus Guard 7805 | -5/Cetus | Spotted Cetus Guard 7809 | -5/Cetus | Allies destroyed Cetus Guard 7819 | -5/Cetus | Destroyed Cetus Guard 7822 | -5/Cetus | Allies destroyed Cetus Guard 7825 | -5/Cetus | Build established: Commander-Gunner 7828 | -5/Cetus | Allies destroyed Cetus Guard 7853 | -5/Cetus | Started Cetus Manufacturing Module 7857 | -5/Cetus | Lost 8 allies 7858 | -5/Cetus | Escorted A7 to Cetus Mainframe 7878 | -5/Cetus | Manufactured an Enhanced Grunt 7892 | -5/Cetus | Discovered new exit (range 15) 7903 | -5/Cetus | Manufactured an Enhanced Grunt 7928 | -5/Cetus | Manufactured an Enhanced Grunt 7953 | -5/Cetus | Manufactured an Enhanced Grunt 7978 | -5/Cetus | Manufactured an Enhanced Grunt 8115 | -5/Cetus | Spotted Cetus Guard 8115 | -5/Cetus | Spotted Cetus Guard 8118 | -5/Cetus | Spotted Cetus Guard 8118 | -5/Cetus | Spotted Cetus Guard 8119 | -5/Cetus | Destroyed Cetus Guard 8119 | -5/Cetus | Destroyed Cetus Guard 8128 | -5/Cetus | Allies destroyed Cetus Guard 8132 | -5/Cetus | Allies destroyed Cetus Guard 8132 | -5/Cetus | Discovered new exit (range 15) 8136 | -5/Cetus | Met Revision 17 8185 | -5/Cetus | Entered Archives 8185 | -5/Archives | Accompanied by 10 allies (A7) 8190 | -5/Archives | Received a hacking code to weaken MAIN.C 8228 | -5/Archives | Discovered new exit (range 14) 8303 | -5/Archives | Discovered new exit (range 15) 8325 | -5/Archives | Discovered new exit (range 14) 8412 | -5/Archives | Entered Hub_04(d) 8412 | -5/Hub_04(d) | Accompanied by 8 allies 8442 | -5/Hub_04(d) | Garrison activated, responded to threat 8456 | -5/Hub_04(d) | Discovered new exit (range 12) 8501 | -5/Hub_04(d) | Lost 5 parts (2n1u2w) 8504 | -5/Hub_04(d) | Lost 4 allies 8532 | -5/Hub_04(d) | Discovered new exit (range 11) 8684 | -5/Hub_04(d) | Central database locked down 8712 | -5/Hub_04(d) | First assault squad dispatched 8754 | -5/Hub_04(d) | Network Hub disabled 8755 | -5/Hub_04(d) | Core integrity fell below 50% 8759 | -5/Hub_04(d) | Build established: Hacker-Gunner 8769 | -5/Hub_04(d) | Spotted Lightning 8792 | -5/Hub_04(d) | Network Hub disabled 8800 | -5/Hub_04(d) | Crushed by falling debris 8801 | -5/Hub_04(d) | System corruption reached 10% 8807 | -5/Hub_04(d) | Lost 4 allies 8815 | -5/Hub_04(d) | Network Hub disabled 8815 | -5/Hub_04(d) | Spotted Lightning 8815 | -5/Hub_04(d) | Spotted Lightning 8815 | -5/Hub_04(d) | Spotted Lightning 8815 | -5/Hub_04(d) | Spotted Lightning 8819 | -5/Hub_04(d) | Spotted Lightning 8826 | -5/Hub_04(d) | Spotted Lightning 8830 | -5/Hub_04(d) | System corruption reached 30% 8834 | -5/Hub_04(d) | Entered Factory 8834 | -4/Factory | Evolved 2 slots: Power x1, Propulsion x1 8857 | -4/Factory | Lost 12 parts (4n5u3w) 9046 | -4/Factory | Loaded intel: 8 recycling unit locations 9084 | -4/Factory | First assault squad dispatched 9197 | -4/Factory | Build established: Gunner 9304 | -4/Factory | Lost 3 parts (1p1n1u) 9340 | -4/Factory | Scrapoids reinforcements arrived? 9340 | -4/Factory | Garrison activated, responded to threat 9380 | -4/Factory | Lost 5 allies 9391 | -4/Factory | Identified exit to Upper Caves 9394 | -4/Factory | Lost 9 parts (1p3n3u2w) 9427 | -4/Factory | Discovered new exit (range 9) 9536 | -4/Factory | Lost 5 parts (1p3n1u) 9541 | -4/Factory | Scraphulk reinforcements arrived? 9552 | -4/Factory | Core integrity fell below 50% 9590 | -4/Factory | Core integrity fell below 20% 9599 | -4/Factory | Destroyed by G-67 Veteran with Field Laser Last Messages --------------- 09576_ U-05 Engineer knocked back. 09576_ ALERT: Construction progress impeded, dispatching reinforcements to local area. 09576_ Hvy. Gauss Cannon destroyed. 09579_ Penetrated by Slug. 09580_ Dropped Med. Storage Unit. 09580_ Dropped Hvy. Gauss Cannon. 09581_ Acquired 45 matter. 09581_ U-05 Engineer builds a Wall. 09582_ Slug penetrates Wall. 09587_ System corrupted: Substantial component data lost. 09587_ Broken Adv. Recoil Stabilizer destroyed. 09589_ Slug penetrates Manufacturing Mainframe. 09589_ Penetrated by Slug. 09589_ Slug penetrates Wall. 09592_ Slammed into G-67 Veteran. 09593_ Critical hit (Burn: +50). 09595_ G-67 Veteran suffers critical hit (Burn). 09596_ Critical hit (Burn: +50). Map ----- +----------------------------------------------------+ | "" """ # """ """ #?# % ! %#???????????? | | "" """ # #?#% ! ###%% #???######### | | # #?# % #?# =%#???# # | | ###### #######?# #?#[%*##### # | | ########################## #?# %[%= T" # | | ??????? #?# ! # #?# %!%[ " / | | ??????? #?# ! # #?# %* # | | ??????? #?# # ####/###### # | | ??????? #?# """ """ %+ #% /= ## # | | "?????? #?# """ """ # #% ]!"" #### ### | | "" ???? #?# """ """ "" # # """" #??# #?? | | ?? #?# "" # # """" #??# #?? | | ?" #?# """ """ T" # gg # """ #??# #?? | | ?? "" "" ### """ """ "" # + #### ### | | ???""F"" + / """ """ "" # g# ## # | | ?? """ ### # ######"#### # | | ? #?########+###### ##???# # | | #################?# #???## ##???# !!! + | | ### #???## ###### "" # | | / #???# u "G # | | #####???# """ # | | #???????# "" g # | | #???????# "" # | | #???????# "" g # | | #???????# % ! g # | | #######+#########???????#@ [! %l """" # | | ### #???????????# ! !!% """" # | | ############# %!!*!! """ # | | [!%= * g " # | | [####### " " # | | T *#?????# ^^" " | | * #?????# ## | | | #?????# #? | | ################+######### = #? | | ### #??????# !! / %! #? | | ??#####+#####??????# !| #########+###? | | ???????????????????# #????????????? | | ???????????????????# #????????????? | | ???????????????????# #????????????? | | ???????????????????# """"""" #????????????? | | ???????????????????# """"""" #????????????? | | ???????????????????# """"""" #????????????? | | ???????????????????# """"""" #????????????? | | ???????????????????##################????????????? | | | | | | | | | | | | | +----------------------------------------------------+ Best States ------------- Heat Dissipation 69 Coolant Potential 50 Energy Generation 23 Energy Capacity 350 Matter Stores 300 Matter Capacity 300 Sight Range 21 Robot Scan Range 15 Terrain Scan Range 24 Terrain Scan Density 10 Armor Coverage 225 Phase Shifting 5 Evasion (%) 67 Targeting Accuracy 16 Target Analysis 6 Core Analysis 9 Recoil Reduction 6 Offensive Hacking 34 Defensive Hacking 28 Item Schematics ----------------- Cmb. Airjet | -7/Recycling | Hacked Nuclear Pulse Array | -7/Recycling | Hacked Adv. Hacking Suite | -5/Factory | Hacked Adv. Weapon Cycler | -5/Factory | Hacked Imp. Gyrokinetic Inverter | -5/Factory | Hacked Adv. Cooling System | -5/Hub_04(d) | Hacked Antigrav Array | -5/Hub_04(d) | Hacked Hardcell Cannon | -5/Hub_04(d) | Hacked Hyp. Gauss Cannon | -4/Factory | Scanalyzed Core Analyzer | -4/Factory | Scanalyzed Imp. Gravmag System | -4/Factory | Scanalyzed Adv. Recoil Stabilizer | -4/Factory | Scanalyzed Hvy. Gauss Cannon | -4/Factory | Scanalyzed Robot Schematics ------------------ B-48 Gladiator | -5/Factory | Hacked I-47 Archangel | -5/Factory | Hacked G-50 Soldier | -5/Factory | Hacked M-28 Smith | -5/Hub_04(d) | Hacked Fabricated ------------ Cmb. Airjet | x2 | -5/Factory Cmb. Airjet | x2 | -5/Factory G-50 Soldier | x3 | -5/Factory Repaired ---------- Gravmag System | 48% | -5/Factory Alien Tech Used ----------------- None Achievements -------------- None Challenges ------------ None Game ------ Seed MicrowarpSalvagingBoomstick Manual? 0 Play Time 02:26:16 Cumulative 264.6 hours Start 2025.06.08 @ 10:17:05 End 2025.06.08 @ 12:43:11 Sessions 1 Manual Loads 0 Difficulty Rogue Special Mode None Game No. 165 Rogue 165 Adventurer 0 Explorer 0 Win Type - Total 3 Types 1/0/1/1/0/0/0/0/0/0 Lore% 80 Gallery% 66 Achievement% 63 Wizard Run 0 Options --------- Layout 2 ASCII 0 Keyboard 1 Movement Vi Keybinds 0 Fullscreen 1 Font 16/Tamsyn Map View 55x47 Zoom Use 0% Tactical HUD 1 Map Filters NONE Filters NONE Steam 0 RUN: c4d76fb1-095e-4e6e-9480-bd137af8b89c